[Event "Championnat du monde jeunes U12"]
[Date "2024.11.18"]
[White "Golis, Wiktor"]
[Black "Antipov, Fedor"]
[WhiteElo "2343"]
[BlackElo "1991"]
[Round "4.5"]
[Result "1-0"]
[TimeControl "5400+30"]

1. e4 {[%clk 1:30:54]} 1... c5 {[%clk 1:30:51]} 2. Nf3 {[%clk 1:31:16]} 2... e6
{[%clk 1:31:13]} 3. d4 {[%clk 1:31:27]} 3... cxd4 {[%clk 1:31:38]} 4. Nxd4
{[%clk 1:31:51]} 4... Nc6 {[%clk 1:31:59]} 5. Bf4 {[%clk 1:26:12]} 5... d6
{[%clk 1:23:11]} 6. Nxc6 {[%clk 1:25:06]} 6... bxc6 {[%clk 1:21:50]} 7. Bd3
{[%clk 1:25:29]} 7... e5 {[%clk 1:14:49]} 8. Be3 {[%clk 1:25:12]} 8... Nf6
{[%clk 1:13:28]} 9. O-O {[%clk 1:21:42]} 9... Be7 {[%clk 1:12:29]} 10. c4 {[%clk
1:14:38]} 10... O-O {[%clk 1:11:51]} 11. Nc3 {[%clk 1:14:55]} 11... Be6 {[%clk
1:05:55]} 12. Qe2 {[%clk 1:06:35]} 12... Qc7 {[%clk 0:51:41]} 13. Rfd1 {[%clk
1:03:03]} 13... Rad8 {[%clk 0:50:04]} 14. Rac1 {[%clk 1:00:33]} 14... Qb7 {[%clk
0:41:18]} 15. b3 {[%clk 0:46:51]} 15... Rfe8 {[%clk 0:29:20]} 16. h3 {[%clk
0:40:20]} 16... Rd7 {[%clk 0:22:53]} 17. c5 {[%clk 0:20:45]} 17... d5 {[%clk
0:18:22]} 18. exd5 {[%clk 0:20:49]} 18... Nxd5 {[%clk 0:18:16]} 19. Nxd5 {[%clk
0:20:32]} 19... Bxd5 {[%clk 0:18:03]} 20. Bf5 {[%clk 0:20:11]} 20... Rdd8 {[%clk
0:17:22]} 21. Bd3 {[%clk 0:17:10]} 21... Qc8 {[%clk 0:14:28]} 22. Qg4 {[%clk
0:09:09]} 22... Qxg4 {[%clk 0:11:16]} 23. hxg4 {[%clk 0:09:38]} 23... Rd7 {[%clk
0:10:54]} 24. Rd2 {[%clk 0:05:06]} 24... Red8 {[%clk 0:04:32]} 25. Rcd1 {[%clk
0:05:20]} 25... Kf8 {[%clk 0:04:02]} 26. b4 {[%clk 0:04:20]} 26... Ke8 {[%clk
0:02:20]} 27. b5 {[%clk 0:03:31]} 27... e4 {[%clk 0:02:25]} 28. Be2 {[%clk
0:02:52]} 28... Bxa2 {[%clk 0:01:37]} 29. bxc6 {[%clk 0:01:20]} 29... Rxd2
{[%clk 0:01:43]} 30. Bxd2 Bxc5 {[%clk 0:00:35]} 31. c7 {[%clk 0:01:17]} 31...
Rc8 {[%clk 0:00:44]} 32. Bf4 {[%clk 0:00:42]} 32... Bb6 {[%clk 0:00:39]} 33. Ba6
{[%clk 0:00:41]} 33... Rxc7 {[%clk 0:00:32]} 34. Bb5+ {[%clk 0:01:00]} 34... Kf8
{[%clk 0:00:33]} 35. Rd8+ Ke7 {[%clk 0:00:53]} 36. Bxc7 {[%clk 0:01:50]} 36...
Bxc7 {[%clk 0:01:02]} 37. Rd7+ {[%clk 0:02:16]} 37... Kf6 {[%clk 0:01:16]} 38.
Rxc7 {[%clk 0:02:41]} 38... Be6 {[%clk 0:01:28]} 39. Bc4 {[%clk 0:02:34]} 39...
Bxg4 {[%clk 0:01:51]} 40. Rxf7+ {[%clk 0:02:59]} 40... Kg6 {[%clk 0:02:14]} 41.
Rxa7 {[%clk 0:03:25]} 41... h5 {[%clk 0:02:28]} 42. Bd5 {[%clk 0:03:29]} 42...
Bf5 {[%clk 0:02:38]} 43. Ra4 {[%clk 0:03:48]} 43... Kg5 {[%clk 0:02:51]} 44.
Bxe4 {[%clk 0:04:10]} 44... Bd7 {[%clk 0:03:14]} 45. Ra5+ {[%clk 0:04:34]} 45...
Kh4 {[%clk 0:03:28]} 46. g3+ {[%clk 0:04:48]} 46... Kg4 {[%clk 0:03:40]} 47. Kg2
{[%clk 0:05:09]} 1-0

[Variant "Standard"]
[Site "Europe Echecs"]

[Event "Championnat du monde jeunes U12"]
[Date "2024.11.18"]
[White "Smirnov, Mark"]
[Black "Platonovs, Nikolajs"]
[WhiteElo "2300"]
[BlackElo "1969"]
[Round "4.6"]
[Result "1-0"]
[TimeControl "5400+30"]

1. e4 {[%clk 1:30:55]} 1... c5 {[%clk 1:30:57]} 2. Ne2 {[%clk 1:31:20]} 2... d6
{[%clk 1:30:38]} 3. g3 {[%clk 1:31:39]} 3... g6 {[%clk 1:30:43]} 4. Bg2 {[%clk
1:31:45]} 4... Bg7 {[%clk 1:30:53]} 5. c3 {[%clk 1:31:13]} 5... Nc6 {[%clk
1:30:02]} 6. d4 {[%clk 1:29:37]} 6... cxd4 {[%clk 1:29:52]} 7. cxd4 {[%clk
1:28:54]} 7... Qb6 {[%clk 1:28:36]} 8. Nbc3 {[%clk 1:22:52]} 8... Nf6 {[%clk
1:24:02]} 9. h3 {[%clk 1:13:08]} 9... O-O {[%clk 1:22:20]} 10. b3 {[%clk
1:05:25]} 10... e5 {[%clk 1:13:26]} 11. d5 {[%clk 0:56:09]} 11... Ne7 {[%clk
1:13:42]} 12. Be3 {[%clk 0:55:34]} 12... Qd8 {[%clk 1:11:59]} 13. Qd2 {[%clk
0:53:34]} 13... b6 {[%clk 1:01:06]} 14. O-O {[%clk 0:49:22]} 14... Ba6 {[%clk
0:59:43]} 15. a4 {[%clk 0:47:15]} 15... Qd7 {[%clk 0:56:44]} 16. Rfc1 {[%clk
0:43:52]} 16... Rfc8 {[%clk 0:53:15]} 17. a5 {[%clk 0:40:20]} 17... Qb7 {[%clk
0:48:44]} 18. b4 {[%clk 0:34:53]} 18... bxa5 {[%clk 0:37:43]} 19. Rxa5 {[%clk
0:34:42]} 19... Bc4 {[%clk 0:35:31]} 20. b5 {[%clk 0:34:21]} 20... Nd7 {[%clk
0:34:02]} 21. Rb1 {[%clk 0:17:39]} 21... Nb6 {[%clk 0:27:21]} 22. Na4 {[%clk
0:13:36]} 22... Nxa4 {[%clk 0:14:11]} 23. Rxa4 {[%clk 0:13:57]} 23... a6 {[%clk
0:12:50]} 24. Nc3 {[%clk 0:11:20]} 24... axb5 {[%clk 0:11:44]} 25. Rab4 {[%clk
0:11:44]} 25... Qc7 {[%clk 0:10:21]} 26. Nxb5 {[%clk 0:11:48]} 26... Bxb5 {[%clk
0:10:42]} 27. Rxb5 {[%clk 0:12:14]} 27... Rcb8 {[%clk 0:10:23]} 28. Qb4 {[%clk
0:11:03]} 28... Rxb5 {[%clk 0:10:33]} 29. Qxb5 {[%clk 0:11:31]} 29... h5 {[%clk
0:09:58]} 30. Rc1 {[%clk 0:11:38]} 30... Qb8 {[%clk 0:07:24]} 31. Qd3 {[%clk
0:10:05]} 31... Qb7 {[%clk 0:06:36]} 32. h4 {[%clk 0:09:59]} 32... Kh7 {[%clk
0:04:39]} 33. Rb1 {[%clk 0:08:36]} 33... Qc7 {[%clk 0:03:58]} 34. Bh3 {[%clk
0:07:27]} 34... Bh6 {[%clk 0:03:54]} 35. Bb6 {[%clk 0:03:35]} 35... Qb8 {[%clk
0:03:11]} 36. Qc2 {[%clk 0:01:43]} 36... Ra6 {[%clk 0:02:21]} 37. Qc7 {[%clk
0:02:00]} 37... Qxc7 {[%clk 0:02:06]} 38. Bxc7 {[%clk 0:02:28]} 38... Bf8 {[%clk
0:01:38]} 39. Bf1 {[%clk 0:02:32]} 39... Ra4 {[%clk 0:00:51]} 40. Bxd6 {[%clk
0:02:47]} 40... Kg7 {[%clk 0:00:38]} 41. Rb7 {[%clk 0:02:42]} 41... Kf6 {[%clk
0:00:35]} 42. Rb8 {[%clk 0:02:12]} 42... Kg7 {[%clk 0:00:38]} 43. Re8 {[%clk
0:01:36]} 43... Ra7 {[%clk 0:00:42]} 44. Bxe5+ {[%clk 0:01:53]} 44... f6 {[%clk
0:01:06]} 45. Bxf6+ {[%clk 0:01:32]} 45... Kf7 {[%clk 0:00:43]} 46. Rb8 {[%clk
0:01:46]} 46... Nxd5 {[%clk 0:00:33]} 47. Rxf8+ {[%clk 0:02:08]} 47... Kxf8
{[%clk 0:00:52]} 48. exd5 {[%clk 0:02:21]} 48... Kf7 {[%clk 0:01:09]} 49. Bg5
{[%clk 0:02:41]} 49... Ra5 {[%clk 0:00:36]} 50. d6 {[%clk 0:02:56]} 50... Ke6
{[%clk 0:00:48]} 51. Bf4 {[%clk 0:03:23]} 51... Ra1 {[%clk 0:01:00]} 52. Kg2
{[%clk 0:03:51]} 52... Ra4 {[%clk 0:00:39]} 53. Bb5 {[%clk 0:04:07]} 53... Rd4
{[%clk 0:00:41]} 54. d7 {[%clk 0:04:33]} 1-0

[Variant "Standard"]
[Site "Europe Echecs"]

[Event "Championnat du monde jeunes U12"]
[Date "2024.11.18"]
[White "Negrean, Andrei"]
[Black "Kleschevnikov, Arseny"]
[WhiteElo "2255"]
[BlackElo "1893"]
[Round "4.7"]
[Result "1/2-1/2"]
[TimeControl "5400+30"]

1. Nf3 {[%clk 1:30:51]} 1... d5 {[%clk 1:30:55]} 2. g3 {[%clk 1:31:01]} 2... c5
{[%clk 1:30:24]} 3. Bg2 {[%clk 1:31:07]} 3... Nf6 {[%clk 1:28:49]} 4. O-O {[%clk
1:31:03]} 4... e6 {[%clk 1:29:10]} 5. c4 {[%clk 1:31:07]} 5... d4 {[%clk
1:29:26]} 6. e3 {[%clk 1:30:44]} 6... Nc6 {[%clk 1:29:51]} 7. d3 {[%clk
1:30:34]} 7... Bd6 {[%clk 1:29:28]} 8. exd4 {[%clk 1:25:43]} 8... cxd4 {[%clk
1:29:49]} 9. Bg5 {[%clk 1:22:37]} 9... h6 {[%clk 1:29:48]} 10. Bxf6 {[%clk
1:22:26]} 10... Qxf6 {[%clk 1:30:14]} 11. Nbd2 {[%clk 1:21:25]} 11... Qe7 {[%clk
1:28:55]} 12. Re1 {[%clk 1:15:46]} 12... O-O {[%clk 1:26:29]} 13. Nb3 {[%clk
1:01:35]} 13... Rd8 {[%clk 1:02:17]} 14. Nbxd4 {[%clk 0:41:57]} 14... Nxd4
{[%clk 1:02:13]} 15. Nxd4 {[%clk 0:42:26]} 15... Bxg3 {[%clk 1:00:03]} 16. hxg3
{[%clk 0:42:01]} 16... Rxd4 {[%clk 1:00:28]} 17. Qe2 {[%clk 0:41:40]} 17... Qd6
{[%clk 0:44:04]} 18. Rad1 {[%clk 0:38:20]} 18... Rb8 {[%clk 0:39:06]} 19. Qe5
{[%clk 0:34:25]} 19... Qxe5 {[%clk 0:39:14]} 20. Rxe5 {[%clk 0:34:53]} 20... b6
{[%clk 0:35:00]} 21. Re4 {[%clk 0:25:27]} 21... Rd7 {[%clk 0:33:29]} 22. d4
{[%clk 0:24:01]} 22... Bb7 {[%clk 0:33:27]} 23. d5 {[%clk 0:23:25]} 23... b5
{[%clk 0:27:31]} 24. b3 {[%clk 0:19:14]} 24... bxc4 {[%clk 0:27:48]} 25. bxc4
{[%clk 0:19:33]} 25... exd5 {[%clk 0:27:10]} 26. Red4 {[%clk 0:19:54]} 26...
Rbd8 {[%clk 0:26:54]} 27. cxd5 {[%clk 0:19:41]} 27... Kf8 {[%clk 0:22:56]} 28.
f4 {[%clk 0:13:35]} 28... f5 {[%clk 0:19:09]} 29. Kf2 {[%clk 0:10:15]} 29... Kf7
{[%clk 0:18:26]} 30. R1d2 {[%clk 0:07:24]} 30... Kf6 {[%clk 0:17:48]} 31. Bf3
{[%clk 0:03:58]} 31... Rd6 {[%clk 0:16:37]} 1/2-1/2

[Variant "Standard"]
[Site "Europe Echecs"]

[Event "Championnat du monde jeunes U12"]
[Date "2024.11.18"]
[White "Stepanyan, Davit"]
[Black "Liu, Patrick"]
[WhiteElo "2011"]
[BlackElo "2192"]
[Round "4.8"]
[Result "1/2-1/2"]
[TimeControl "5400+30"]

1. d4 {[%clk 1:30:57]} 1... Nf6 {[%clk 1:30:58]} 2. c4 {[%clk 1:31:14]} 2... e6
{[%clk 1:31:21]} 3. Nc3 {[%clk 1:31:30]} 3... Bb4 {[%clk 1:31:45]} 4. e3 {[%clk
1:31:47]} 4... O-O {[%clk 1:31:31]} 5. Bd2 {[%clk 1:31:28]} 5... d5 {[%clk
1:31:27]} 6. Nf3 {[%clk 1:31:28]} 6... c5 {[%clk 1:24:48]} 7. a3 {[%clk
1:27:31]} 7... Bxc3 {[%clk 1:23:26]} 8. Bxc3 {[%clk 1:27:52]} 8... Ne4 {[%clk
1:23:26]} 9. Rc1 {[%clk 1:27:41]} 9... Nxc3 {[%clk 1:19:42]} 10. Rxc3 {[%clk
1:28:03]} 10... cxd4 {[%clk 1:19:02]} 11. exd4 {[%clk 1:26:27]} 11... dxc4
{[%clk 1:10:03]} 12. Bxc4 {[%clk 1:26:43]} 12... Nd7 {[%clk 1:10:15]} 13. O-O
{[%clk 1:26:01]} 13... Nb6 {[%clk 1:09:57]} 14. Bd3 {[%clk 1:22:31]} 14... Nd5
{[%clk 1:10:14]} 15. Rc1 {[%clk 1:20:58]} 15... b6 {[%clk 1:07:10]} 16. Re1
{[%clk 1:18:45]} 16... Bb7 {[%clk 1:05:24]} 17. Qd2 {[%clk 1:18:38]} 17... h6
{[%clk 1:03:05]} 18. Ne5 {[%clk 1:17:19]} 18... Qe7 {[%clk 0:47:28]} 19. Bb1
{[%clk 1:15:47]} 19... Rac8 {[%clk 0:41:43]} 20. Qd3 {[%clk 1:10:19]} 20... f5
{[%clk 0:38:07]} 21. Qd2 {[%clk 1:08:38]} 21... Qd6 {[%clk 0:34:27]} 22. Ba2
{[%clk 1:07:47]} 22... Kh7 {[%clk 0:33:43]} 23. f3 {[%clk 1:03:06]} 23... Rxc1
{[%clk 0:28:59]} 24. Rxc1 {[%clk 1:02:43]} 24... Rc8 {[%clk 0:28:10]} 25. Re1
{[%clk 1:02:26]} 25... Re8 {[%clk 0:25:23]} 26. Bb1 {[%clk 1:01:09]} 26... Kg8
{[%clk 0:23:39]} 27. Nc4 {[%clk 0:58:07]} 27... Qc7 {[%clk 0:22:57]} 28. b3
{[%clk 0:55:51]} 28... Nf6 {[%clk 0:20:50]} 29. Ne5 {[%clk 0:51:49]} 29... Rc8
{[%clk 0:20:11]} 30. Nd3 {[%clk 0:41:02]} 30... Bd5 {[%clk 0:17:03]} 31. Rc1
{[%clk 0:40:40]} 31... Qd8 {[%clk 0:16:49]} 32. Rxc8 {[%clk 0:40:30]} 32... Qxc8
{[%clk 0:17:16]} 33. Qc2 {[%clk 0:40:30]} 33... Qd8 {[%clk 0:14:23]} 34. Qc3
{[%clk 0:38:33]} 34... Kh7 {[%clk 0:12:54]} 35. b4 {[%clk 0:37:47]} 35... Bb7
{[%clk 0:10:59]} 36. Nf4 {[%clk 0:36:01]} 36... Qd6 {[%clk 0:09:32]} 37. Qe3
{[%clk 0:35:44]} 37... Bd5 {[%clk 0:09:34]} 38. g4 {[%clk 0:31:38]} 38... g6
{[%clk 0:08:33]} 39. Qe5 {[%clk 0:30:58]} 39... Qc6 {[%clk 0:05:00]} 40. Qxf6
{[%clk 0:30:55]} 40... Qc1+ {[%clk 0:05:02]} 41. Kf2 {[%clk 0:31:19]} 41... Qxf4
{[%clk 0:05:09]} 42. Qf7+ {[%clk 0:31:44]} 42... Kh8 {[%clk 0:05:37]} 43. Qf8+
{[%clk 0:31:35]} 43... Kh7 {[%clk 0:06:04]} 44. Qf7+ {[%clk 0:31:58]} 1/2-1/2

[Variant "Standard"]
[Site "Europe Echecs"]

[Event "Championnat du monde jeunes U12"]
[Date "2024.11.18"]
[White "Radzimski, Antoni"]
[Black "Yang, Maxwell"]
[WhiteElo "2188"]
[BlackElo "1889"]
[Round "4.9"]
[Result "1-0"]
[TimeControl "5400+30"]

1. Nf3 {[%clk 1:30:43]} 1... Nf6 {[%clk 1:30:47]} 2. c4 {[%clk 1:31:08]} 2... g6
{[%clk 1:31:10]} 3. Nc3 {[%clk 1:31:33]} 3... d5 {[%clk 1:31:36]} 4. cxd5 {[%clk
1:31:57]} 4... Nxd5 {[%clk 1:32:00]} 5. Qb3 {[%clk 1:32:23]} 5... Nb6 {[%clk
1:32:06]} 6. d4 {[%clk 1:32:46]} 6... Bg7 {[%clk 1:32:18]} 7. Bf4 {[%clk
1:33:08]} 7... O-O {[%clk 1:30:58]} 8. Rd1 {[%clk 1:33:04]} 8... Nc6 {[%clk
1:29:33]} 9. d5 {[%clk 1:29:45]} 9... Na5 {[%clk 1:28:01]} 10. Qb4 {[%clk
1:29:52]} 10... Nac4 {[%clk 1:28:11]} 11. e4 {[%clk 1:21:46]} 11... Nd6 {[%clk
0:55:57]} 12. e5 {[%clk 1:17:27]} 12... Ne8 {[%clk 0:55:43]} 13. Be2 {[%clk
1:13:53]} 13... f6 {[%clk 0:52:17]} 14. e6 {[%clk 1:08:48]} 14... Nd6 {[%clk
0:51:48]} 15. h4 {[%clk 1:03:27]} 15... f5 {[%clk 0:33:34]} 16. h5 {[%clk
0:54:49]} 16... c6 {[%clk 0:30:43]} 17. hxg6 {[%clk 0:54:07]} 17... hxg6 {[%clk
0:31:04]} 18. Be5 {[%clk 0:51:08]} 18... f4 {[%clk 0:30:37]} 19. dxc6 {[%clk
0:48:43]} 19... bxc6 {[%clk 0:28:23]} 20. Bxg7 {[%clk 0:36:41]} 20... Kxg7
{[%clk 0:27:31]} 21. Qd4+ {[%clk 0:37:03]} 21... Rf6 {[%clk 0:27:27]} 22. Ne4
{[%clk 0:36:38]} 22... Nd5 {[%clk 0:27:35]} 23. Nxf6 {[%clk 0:36:52]} 23... exf6
{[%clk 0:27:49]} 24. Qc5 {[%clk 0:35:00]} 24... Bxe6 {[%clk 0:21:33]} 25. Nd4
{[%clk 0:34:02]} 25... Qd7 {[%clk 0:20:41]} 26. Nxe6+ {[%clk 0:31:03]} 26...
Qxe6 {[%clk 0:20:52]} 27. O-O {[%clk 0:26:28]} 27... Ne4 {[%clk 0:20:10]} 28.
Qd4 {[%clk 0:25:52]} 28... Ng5 {[%clk 0:19:32]} 29. Rfe1 {[%clk 0:22:42]} 29...
Qf5 {[%clk 0:16:04]} 30. Qd3 {[%clk 0:22:03]} 30... Qd7 {[%clk 0:14:25]} 31. Bf3
{[%clk 0:21:20]} 31... Nxf3+ {[%clk 0:13:20]} 32. Qxf3 {[%clk 0:21:45]} 32...
Rh8 {[%clk 0:13:40]} 33. Rd4 {[%clk 0:19:23]} 33... g5 {[%clk 0:12:48]} 34. Qe4
{[%clk 0:19:02]} 34... Qg4 {[%clk 0:10:35]} 35. Ra4 {[%clk 0:18:06]} 35... Qh4
{[%clk 0:00:46]} 36. Rxa7+ {[%clk 0:18:29]} 36... Kh6 {[%clk 0:01:12]} 37. Qf5
{[%clk 0:14:44]} 37... f3 {[%clk 0:00:41]} 38. Re8 {[%clk 0:14:44]} 38... Qh1+
{[%clk 0:00:31]} 39. Kxh1 {[%clk 0:15:06]} 39... fxg2+ {[%clk 0:00:57]} 40. Kg1
{[%clk 0:15:31]} 1-0

[Variant "Standard"]
[Site "Europe Echecs"]

[Event "Championnat du monde jeunes U12"]
[Date "2024.11.18"]
[White "Gao, Arthur"]
[Black "Luger, Sam"]
[WhiteElo "1979"]
[BlackElo "2094"]
[Round "4.10"]
[Result "1/2-1/2"]
[TimeControl "5400+30"]

1. e4 {[%clk 1:30:45]} 1... e5 {[%clk 1:28:17]} 2. Nf3 {[%clk 1:31:03]} 2... Nc6
{[%clk 1:28:43]} 3. Bc4 {[%clk 1:29:46]} 3... Nf6 {[%clk 1:27:50]} 4. d3 {[%clk
1:29:46]} 4... Bc5 {[%clk 1:26:52]} 5. O-O {[%clk 1:29:56]} 5... d6 {[%clk
1:25:53]} 6. c3 {[%clk 1:26:28]} 6... a5 {[%clk 1:25:45]} 7. Re1 {[%clk
1:24:29]} 7... Ba7 {[%clk 1:24:59]} 8. Nbd2 {[%clk 1:22:14]} 8... O-O {[%clk
1:24:23]} 9. Nf1 {[%clk 1:17:51]} 9... Be6 {[%clk 1:11:40]} 10. Bb5 {[%clk
1:15:45]} 10... Ne7 {[%clk 1:09:48]} 11. Ng3 {[%clk 1:02:05]} 11... Ng6 {[%clk
0:57:48]} 12. d4 {[%clk 0:53:54]} 12... c6 {[%clk 0:37:24]} 13. Bd3 {[%clk
0:49:45]} 13... Bg4 {[%clk 0:30:33]} 14. dxe5 {[%clk 0:28:52]} 14... Nxe5 {[%clk
0:19:52]} 15. Be2 {[%clk 0:28:31]} 15... Bxf3 {[%clk 0:08:23]} 16. Bxf3 {[%clk
0:24:36]} 16... d5 {[%clk 0:07:55]} 17. Bg5 {[%clk 0:18:53]} 17... h6 {[%clk
0:04:47]} 18. Be3 {[%clk 0:12:19]} 18... Bxe3 {[%clk 0:04:02]} 19. Rxe3 {[%clk
0:12:36]} 19... dxe4 {[%clk 0:02:08]} 20. Bxe4 {[%clk 0:09:47]} 20... Nc4 {[%clk
0:01:21]} 21. Re2 {[%clk 0:09:26]} 21... Nxe4 {[%clk 0:01:16]} 22. Nxe4 {[%clk
0:09:11]} 22... Qxd1+ {[%clk 0:01:03]} 23. Rxd1 {[%clk 0:07:40]} 23... Rfd8
{[%clk 0:01:12]} 24. Rde1 {[%clk 0:06:46]} 1/2-1/2

[Variant "Standard"]
[Site "Europe Echecs"]

[Event "Championnat du monde jeunes U12"]
[Date "2024.11.18"]
[White "Huseynov, Ahmed"]
[Black "Fulgentini, Edoardo"]
[WhiteElo "1886"]
[BlackElo "2075"]
[Round "4.11"]
[Result "0-1"]
[TimeControl "5400+30"]

1. d4 {[%clk 1:30:54]} 1... Nf6 {[%clk 1:30:55]} 2. Nf3 {[%clk 1:31:18]} 2... d5
{[%clk 1:31:20]} 3. g3 {[%clk 1:31:42]} 3... e6 {[%clk 1:31:32]} 4. Bg2 {[%clk
1:32:04]} 4... b5 {[%clk 1:31:38]} 5. O-O {[%clk 1:29:49]} 5... Bb7 {[%clk
1:31:22]} 6. c3 {[%clk 1:29:20]} 6... Nbd7 {[%clk 1:28:45]} 7. Bf4 {[%clk
1:26:09]} 7... Be7 {[%clk 1:27:34]} 8. Nbd2 {[%clk 1:25:15]} 8... O-O {[%clk
1:26:36]} 9. Ne5 {[%clk 1:06:21]} 9... c5 {[%clk 1:19:11]} 10. dxc5 {[%clk
1:05:08]} 10... Nxc5 {[%clk 1:17:29]} 11. Nb3 {[%clk 0:53:36]} 11... Na4 {[%clk
1:04:01]} 12. Qc2 {[%clk 0:49:46]} 12... Rc8 {[%clk 0:59:26]} 13. Nd4 {[%clk
0:46:31]} 13... Qb6 {[%clk 0:57:48]} 14. Be3 {[%clk 0:45:28]} 14... a6 {[%clk
0:50:36]} 15. Rfd1 {[%clk 0:38:57]} 15... Qc7 {[%clk 0:47:27]} 16. f4 {[%clk
0:28:23]} 16... Nb6 {[%clk 0:43:25]} 17. Ndf3 {[%clk 0:12:02]} 17... Bc5 {[%clk
0:24:56]} 18. Bxc5 {[%clk 0:08:00]} 18... Qxc5+ {[%clk 0:25:20]} 19. Rd4 {[%clk
0:05:51]} 19... Nbd7 {[%clk 0:22:06]} 20. Rd1 {[%clk 0:05:53]} 20... Nxe5 {[%clk
0:19:48]} 21. Nxe5 {[%clk 0:06:14]} 21... Rc7 {[%clk 0:14:21]} 22. Qd3 {[%clk
0:06:03]} 22... Ne4 {[%clk 0:13:47]} 23. Qe3 {[%clk 0:05:10]} 23... f6 {[%clk
0:08:39]} 24. Nd3 {[%clk 0:05:28]} 24... Qe7 {[%clk 0:08:17]} 25. Bxe4 {[%clk
0:05:04]} 25... dxe4 26. Nf2 {[%clk 0:04:52]} 26... f5 {[%clk 0:07:56]} 27. Rd6
{[%clk 0:04:22]} 27... a5 {[%clk 0:03:39]} 28. Qd4 {[%clk 0:04:20]} 28... Bd5
{[%clk 0:02:56]} 29. Qe5 {[%clk 0:04:18]} 29... Bxa2 {[%clk 0:02:29]} 30. Ra1
{[%clk 0:01:12]} 30... Bc4 {[%clk 0:02:08]} 31. Rxa5 {[%clk 0:01:36]} 31... Rd7
{[%clk 0:01:16]} 32. Raa6 {[%clk 0:00:39]} 32... Rxd6 {[%clk 0:00:42]} 33. Rxd6
{[%clk 0:01:04]} 33... Rd8 {[%clk 0:00:36]} 34. Rd4 {[%clk 0:00:38]} 34... Rxd4
{[%clk 0:00:58]} 35. Qxd4 {[%clk 0:00:42]} 35... Bxe2 {[%clk 0:01:19]} 36. Nh3
{[%clk 0:00:48]} 36... h6 {[%clk 0:01:41]} 37. Kf2 {[%clk 0:01:10]} 37... Bc4
{[%clk 0:01:52]} 38. Ke3 {[%clk 0:01:34]} 38... Qe8 {[%clk 0:01:33]} 39. Qd1
{[%clk 0:01:22]} 39... Qe7 {[%clk 0:01:09]} 40. Qd4 {[%clk 0:01:33]} 40... Qf7
{[%clk 0:01:27]} 41. Ng1 {[%clk 0:00:50]} 41... Qh5 {[%clk 0:01:10]} 42. h4
{[%clk 0:00:42]} 42... Qg4 {[%clk 0:01:07]} 43. Kf2 {[%clk 0:01:04]} 43... Kh7
{[%clk 0:01:12]} 44. Qd2 {[%clk 0:00:38]} 44... Bd3 {[%clk 0:00:57]} 45. Qc1
{[%clk 0:00:38]} 45... Kg6 {[%clk 0:00:35]} 46. Qd2 {[%clk 0:00:33]} 46... Kh7
{[%clk 0:01:02]} 47. Qc1 {[%clk 0:00:58]} 47... Qh5 {[%clk 0:01:23]} 48. Qd2
{[%clk 0:00:57]} 48... Qf7 {[%clk 0:01:36]} 49. Qe3 {[%clk 0:01:04]} 49... Qb7
{[%clk 0:01:40]} 50. Nh3 {[%clk 0:00:40]} 50... Qa6 {[%clk 0:01:54]} 51. Qc1
{[%clk 0:00:41]} 51... Qa7+ {[%clk 0:02:18]} 52. Kg2 {[%clk 0:00:34]} 52... e3
{[%clk 0:01:55]} 53. Ng1 {[%clk 0:00:53]} 53... Qb7+ {[%clk 0:02:15]} 54. Nf3
{[%clk 0:00:57]} 54... Qe4 {[%clk 0:02:36]} 55. Qe1 {[%clk 0:01:15]} 55... Bc4
{[%clk 0:02:49]} 56. Qd1 {[%clk 0:00:45]} 56... Bd5 {[%clk 0:03:14]} 57. Qe2
{[%clk 0:01:07]} 57... Bc6 {[%clk 0:03:26]} 58. h5 {[%clk 0:01:14]} 58... Bd5
{[%clk 0:03:47]} 59. b3 {[%clk 0:01:11]} 59... Ba8 {[%clk 0:02:49]} 60. c4
{[%clk 0:01:15]} 60... bxc4 {[%clk 0:03:15]} 61. bxc4 {[%clk 0:01:35]} 61... Bb7
{[%clk 0:03:20]} 62. c5 {[%clk 0:01:53]} 62... Bc6 {[%clk 0:03:38]} 0-1

[Variant "Standard"]
[Site "Europe Echecs"]

[Event "Championnat du monde jeunes U12"]
[Date "2024.11.18"]
[White "Obidjonov, Oriyat"]
[Black "Aadik Theophane Lenin"]
[WhiteElo "2074"]
[BlackElo "1857"]
[Round "4.12"]
[Result "1-0"]
[TimeControl "5400+30"]

1. e4 {[%clk 1:30:43]} 1... c5 {[%clk 1:30:16]} 2. Nf3 {[%clk 1:30:31]} 2... e6
{[%clk 1:30:44]} 3. d4 {[%clk 1:30:49]} 3... cxd4 {[%clk 1:31:09]} 4. Nxd4
{[%clk 1:31:12]} 4... Nc6 {[%clk 1:31:25]} 5. Bf4 {[%clk 1:31:28]} 5... d6
{[%clk 1:21:27]} 6. Nxc6 {[%clk 1:30:33]} 6... bxc6 {[%clk 1:21:56]} 7. c4
{[%clk 1:31:02]} 7... e5 {[%clk 1:19:57]} 8. Be3 {[%clk 1:31:10]} 8... Nf6
{[%clk 1:20:06]} 9. Nc3 {[%clk 1:31:21]} 9... Be6 {[%clk 1:12:10]} 10. Be2
{[%clk 1:31:22]} 10... Be7 {[%clk 1:12:27]} 11. O-O {[%clk 1:31:46]} 11... O-O
{[%clk 1:12:48]} 12. b4 {[%clk 1:32:08]} 12... d5 {[%clk 1:11:01]} 13. cxd5
{[%clk 1:32:32]} 13... cxd5 {[%clk 1:11:27]} 14. exd5 {[%clk 1:32:58]} 14...
Nxd5 {[%clk 1:11:45]} 15. Nxd5 {[%clk 1:33:21]} 15... Bxd5 {[%clk 1:07:54]} 16.
Qa4 {[%clk 1:33:18]} 16... Qc8 {[%clk 1:03:38]} 17. Rfd1 {[%clk 1:27:31]} 17...
Qe6 {[%clk 1:02:38]} 18. b5 {[%clk 1:19:09]} 18... Rfd8 {[%clk 0:58:05]} 19.
Rac1 {[%clk 1:11:25]} 19... Bxa2 {[%clk 0:35:29]} 20. Rxd8+ {[%clk 1:11:25]}
20... Bxd8 {[%clk 0:35:50]} 21. b6 {[%clk 1:10:54]} 21... Bxb6 {[%clk 0:34:17]}
22. Bxb6 {[%clk 1:11:13]} 22... Bb3 {[%clk 0:34:42]} 23. Qa6 {[%clk 1:11:36]}
23... f5 {[%clk 0:27:14]} 24. Ba5 {[%clk 1:10:21]} 24... Qd5 {[%clk 0:25:44]}
25. Rc8+ {[%clk 1:09:38]} 25... Rxc8 {[%clk 0:26:04]} 26. Qxc8+ {[%clk 1:10:03]}
26... Kf7 {[%clk 0:26:28]} 27. Qxf5+ {[%clk 1:10:25]} 27... Kg8 {[%clk 0:26:35]}
28. Qc8+ {[%clk 1:07:34]} 28... Kf7 {[%clk 0:27:04]} 29. Qc7+ {[%clk 1:07:48]}
29... Kg6 {[%clk 0:27:25]} 30. Qxa7 {[%clk 1:08:03]} 30... Bc4 {[%clk 0:27:34]}
31. Qb6+ {[%clk 1:08:25]} 31... Kf5 {[%clk 0:27:56]} 32. g4+ {[%clk 1:08:42]}
32... Kg5 {[%clk 0:28:18]} 33. Qd8+ {[%clk 1:08:13]} 33... Kf4 {[%clk 0:28:33]}
34. Bd2+ {[%clk 1:08:33]} 34... Ke4 {[%clk 0:28:56]} 35. f3+ {[%clk 1:08:57]}
35... Kd4 {[%clk 0:29:19]} 36. Qb6+ {[%clk 1:09:22]} 1-0

[Variant "Standard"]
[Site "Europe Echecs"]